fUST/lending_fUST_20240811
["ID","MTS","AMOUNT","RATE_DAILY","PERIOD"]
[334625213,1723361444372,-1392.94350918,0.0002,2]
[334625214,1723361444381,-154.76012181,0.0002,2]
[334625215,1723361444391,-435.0,0.0002,2]
[334625216,1723361444400,-250.0,0.0002,2]
[334625217,1723361444409,-171.9478699,0.0002,2]
[334625218,1723361444419,-1000.0,0.0002,20]
[334625219,1723361444428,-3000.0,0.0002,2]
[334625220,1723361444437,-154.91015126,0.0002,2]
[334625221,1723361444446,-38970.67805524,0.0002,2]
[334625222,1723361444455,-213.395508,0.0002,2]
[334625223,1723361444465,-213.395508,0.0002,2]
[334625224,1723361444474,-155.42019238,0.0002,2]
[334625225,1723361444483,-220.824392,0.0002,2]
[334625226,1723361444495,-220.824392,0.0002,2]
[334625227,1723361444504,-567.157712,0.0002,2]
[334625228,1723361444513,-567.157712,0.0002,2]
[334625229,1723361444523,-3000.0,0.0002001,2]
[334625230,1723361444532,-3000.0,0.0002002,2]
[334625231,1723361444542,-3000.0,0.0002003,2]
[334625232,1723361444551,-3000.0,0.0002004,2]
[334625233,1723361444561,-3000.0,0.0002005,2]
[334625234,1723361444570,-507.0,0.00020058,2]
[334625235,1723361444580,-3000.0,0.0002006,2]
[334625236,1723361444589,-4651.75683684,0.00020063,2]
[334625237,1723361444599,-3000.0,0.0002007,2]
[334625238,1723361444608,-3000.0,0.0002008,2]
[334625239,1723361444617,-3000.0,0.0002009,2]
[334625240,1723361444627,-3000.0,0.000201,2]
[334625241,1723361444637,-3000.0,0.0002011,2]
[334625242,1723361444646,-3000.0,0.0002012,2]
[334625243,1723361444656,-3000.0,0.0002013,2]
[334625244,1723361444665,-3000.0,0.0002014,2]
[334625245,1723361444674,-3000.0,0.0002015,2]
[334625246,1723361444685,-3000.0,0.0002016,2]
[334625247,1723361444694,-3000.0,0.0002017,2]
[334625248,1723361444704,-3000.0,0.0002018,2]
[334625249,1723361444716,-3000.0,0.0002019,2]
[334625250,1723361444726,-3000.0,0.000202,2]
[334625251,1723361444736,-3000.0,0.0002021,2]
[334625252,1723361444748,-153.1,0.00020219,2]
[334625253,1723361444759,-151.0,0.00020219,2]
[334625254,1723361444770,-3000.0,0.0002022,2]
[334625255,1723361444780,-3000.0,0.0002023,2]
[334625256,1723361444791,-178.612123,0.00020237,2]
[334625257,1723361444807,-163.530399,0.00020237,2]
[334625258,1723361444817,-178.593803,0.00020237,2]
[334625259,1723361444826,-166.475249,0.00020237,2]
[334625260,1723361444836,-181.878625,0.00020237,2]
[334625261,1723361444846,-3000.0,0.0002024,2]
[334625262,1723361444856,-151.0,0.0002024,2]
[334625263,1723361444868,-3000.0,0.0002025,2]
[334625264,1723361444878,-3000.0,0.0002026,2]
[334625265,1723361444889,-3000.0,0.0002027,2]
[334625266,1723361444898,-3000.0,0.0002028,2]
[334625267,1723361444908,-3000.0,0.0002029,2]
[334625268,1723361444919,-3000.0,0.000203,2]
[334625269,1723361444929,-2391.93117394,0.0002031,2]
[334625272,1723361445413,-154.76012181,0.00016159,2]
[334625273,1723361445422,-3142.31381751,0.00018029,2]
[334625274,1723361445432,-2141.01768748,0.00018657,2]
[334625275,1723361445441,-154.76012181,0.0001891,2]
[334625276,1723361445451,-608.06882606,0.0002031,2]
[334625277,1723361445460,-3000.0,0.0002032,2]
[334625278,1723361445470,-3000.0,0.0002033,2]
[334625279,1723361445480,-3000.0,0.0002034,2]
[334625280,1723361445492,-3000.0,0.0002035,2]
[334625282,1723361445635,-3000.0,0.0002036,2]
[334625283,1723361445644,-4250.255137,0.0002037,2]
[334625284,1723361445654,-260.312962,0.00020374,2]
[334625285,1723361445663,-154.181858,0.00020443,2]
[334625286,1723361445673,-334.08786,0.00020443,2]
[334625287,1723361445683,-334.08786,0.00020443,2]
[334625288,1723361445692,-151.877628,0.00020443,2]
[334625289,1723361445701,-151.0,0.00020443,2]
[334625291,1723361445711,-153.1,0.00020449,2]
[334625293,1723361445721,-151.0,0.00020449,2]
[334625294,1723361445734,-155.144273,0.0002046,2]
[334625295,1723361445745,-638.25923141,0.00020497,2]
[334625296,1723361445755,-13424.56735799,0.000205,2]
[334625297,1723361445766,-1413.0,0.00020559,2]
[334625298,1723361445775,-151.223,0.00020559,2]
[334625299,1723361445785,-153.535284,0.00020559,2]
[334625300,1723361445795,-151.0,0.00020559,2]
[334625301,1723361445807,-770.12237,0.00020559,2]
[334625302,1723361445816,-770.12237,0.00020559,2]
[334625303,1723361445826,-151.0,0.00020559,2]
[334625304,1723361445836,-151.0,0.00020559,2]
[334625305,1723361445848,-211.032947,0.00020559,2]
[334625306,1723361445857,-151.0,0.00020559,2]
[334625307,1723361445868,-151.428308,0.00020572,2]
[334625309,1723361445878,-72883.43953928,0.000206,2]
[334625311,1723361445887,-213.395508,0.000206,2]
[334625313,1723361445898,-213.395508,0.000206,2]
[334625315,1723361445908,-220.824392,0.000206,2]
[334625317,1723361445919,-220.824392,0.000206,2]
[334625320,1723361445931,-567.157712,0.000206,2]
[334625322,1723361445941,-567.157712,0.000206,2]
[334625324,1723361445951,-153.1,0.00020679,2]
[334625326,1723361445962,-151.0,0.00020679,2]
[334625328,1723361445973,-1000.0,0.00020708,4]
[334625330,1723361445985,-386.865254,0.00020721,2]
[334625332,1723361445997,-386.865254,0.00020721,2]
[334625334,1723361446011,-151.0,0.00020721,2]
[334625336,1723361446022,-151.0,0.00020721,2]
[334625338,1723361446032,-151.0,0.00020721,2]
[334625340,1723361446041,-25000.0,0.00020721,2]
[334625342,1723361446051,-178.612123,0.0002073,2]
[334625345,1723361446063,-163.530399,0.0002073,2]
[334625347,1723361446073,-178.593803,0.0002073,2]
[334625349,1723361446082,-166.475249,0.0002073,2]
[334625351,1723361446091,-181.878625,0.0002073,2]
[334625353,1723361446102,-1000.0,0.00020735,4]
[334625355,1723361446111,-1000.0,0.00020763,4]
[334625358,1723361446122,-151.0,0.00020763,2]
[334625360,1723361446131,-151.0,0.00020763,2]
[334625363,1723361446142,-623.0,0.00020763,2]
[334625365,1723361446151,-623.0,0.00020763,2]
[334625367,1723361446161,-221.595947,0.00020763,2]
[334625369,1723361446171,-221.595947,0.00020763,2]
[334625371,1723361446181,-164.306328,0.0002078,2]
[334625373,1723361446191,-1000.0,0.0002079,4]
[334625375,1723361446201,-1000.0,0.00020818,4]
[334625377,1723361446211,-150.01,0.0002082,2]
[334625379,1723361446221,-2993.60033153,0.0002082,2]
[334625381,1723361446231,-10496.61498137,0.00020821,2]
[334625384,1723361446244,-154.9163793,0.00020821,2]
[334625386,1723361446254,-1627.2392472,0.00020821,2]
[334625387,1723361446264,-4185.35085903,0.00020821,2]
[334625390,1723361446276,-20995.11417515,0.00020821,2]
[334625392,1723361446286,-500.0,0.00020821,3]
[334625393,1723361446296,-500.0,0.00020821,3]
[334625394,1723361446305,-500.0,0.00020821,3]
[334625395,1723361446316,-500.0,0.00020821,3]
[334625396,1723361446325,-500.0,0.00020821,3]
[334625397,1723361446336,-500.0,0.00020821,3]
[334625398,1723361446347,-512.27765922,0.00020821,3]
[334625399,1723361446357,-854.12,0.00020821,3]
[334625400,1723361446367,-606.4,0.00020821,3]
[334625402,1723361446377,-500.0,0.00020821,3]
[334625404,1723361446387,-500.0,0.00020821,3]
[334625406,1723361446397,-500.0,0.00020821,3]
[334625408,1723361446407,-500.0,0.00020821,3]
[334625410,1723361446416,-500.0,0.00020821,3]
[334625412,1723361446427,-500.0,0.00020821,3]
[334625414,1723361446438,-500.0,0.00020821,3]
[334625416,1723361446448,-511.72438029,0.00020821,3]
[334625418,1723361446457,-500.0,0.00020821,3]
[334625420,1723361446466,-500.0,0.00020821,3]
[334625421,1723361446476,-200.0,0.00020821,3]
[334625422,1723361446486,-500.0,0.00020821,3]
[334625423,1723361446497,-619.39201085,0.00020821,3]
[334625424,1723361446506,-606.78589506,0.00020821,3]
[334625425,1723361446515,-500.0,0.00020821,3]
[334625426,1723361446525,-500.0,0.00020821,3]
[334625427,1723361446536,-899.65,0.00020821,3]
[334625428,1723361446547,-500.0,0.00020821,3]
[334625429,1723361446557,-424.50952969,0.00020821,3]
[334625430,1723361446568,-500.0,0.00020821,3]
[334625431,1723361446577,-188.78713991,0.00020821,3]
[334625432,1723361446587,-187.17447926,0.00020821,3]
[334625433,1723361446597,-518.94812623,0.00020821,3]
[334625434,1723361446606,-500.0,0.00020821,3]
[334625435,1723361446616,-500.0,0.00020821,3]
[334625436,1723361446626,-500.0,0.00020821,3]
[334625437,1723361446636,-500.0,0.00020821,3]
[334625438,1723361446645,-500.0,0.00020821,3]
[334625439,1723361446655,-519.96944038,0.00020821,3]
[334625440,1723361446664,-500.0,0.00020821,3]
[334625441,1723361446673,-500.0,0.00020821,3]
[334625442,1723361446682,-357.7573175,0.00020821,3]
[334625443,1723361446692,-500.0,0.00020821,3]
[334625444,1723361446702,-500.0,0.00020821,3]
[334625445,1723361446712,-861.91,0.00020821,3]
[334625446,1723361446725,-500.0,0.00020821,3]
[334625447,1723361446735,-718.89,0.00020821,3]
[334625448,1723361446748,-529.1029252,0.00020821,3]
[334625449,1723361446758,-799.48,0.00020821,3]
[334625450,1723361446769,-799.48,0.00020821,3]
[334625451,1723361446779,-500.0,0.00020821,3]
[334625452,1723361446789,-799.48,0.00020821,3]
[334625453,1723361446804,-799.48,0.00020821,3]
[334625454,1723361446813,-799.48,0.00020821,3]
[334625455,1723361446824,-799.48,0.00020821,3]
[334625456,1723361446836,-799.48,0.00020821,3]
[334625457,1723361446848,-799.48,0.00020821,3]
[334625458,1723361446860,-500.0,0.00020821,3]
[334625459,1723361446871,-799.48,0.00020821,3]
[334625460,1723361446881,-799.48,0.00020821,3]
[334625461,1723361446890,-799.48,0.00020821,3]
[334625462,1723361446899,-799.48,0.00020821,3]
[334625463,1723361446908,-799.48,0.00020821,3]
[334625464,1723361446917,-799.48,0.00020821,3]
[334625465,1723361446927,-799.48,0.00020821,3]
[334625466,1723361446936,-799.48,0.00020821,3]
[334625467,1723361446945,-500.0,0.00020821,3]
[334625468,1723361446955,-799.48,0.00020821,3]
[334625469,1723361446965,-517.58,0.00020821,3]
[334625470,1723361446975,-799.48,0.00020821,3]
[334625471,1723361446984,-799.48,0.00020821,3]
[334625472,1723361446994,-799.48,0.00020821,3]
[334625473,1723361447003,-799.48,0.00020821,3]
[334625474,1723361447014,-799.48,0.00020821,3]
[334625475,1723361447023,-799.48,0.00020821,3]
[334625476,1723361447033,-799.48350698,0.00020821,3]
[334625477,1723361447042,-500.0,0.00020821,3]
[334625478,1723361447051,-500.0,0.00020821,3]
[334625479,1723361447060,-500.0,0.00020821,3]
[334625480,1723361447070,-500.0,0.00020821,3]
[334625481,1723361447079,-603.76,0.00020821,3]
[334625482,1723361447088,-500.0,0.00020821,3]
[334625483,1723361447097,-1248.66,0.00020821,3]
[334625484,1723361447106,-500.0,0.00020821,3]
[334625485,1723361447117,-500.0,0.00020821,3]
[334625486,1723361447126,-500.0,0.00020821,3]
[334625487,1723361447136,-500.0,0.00020821,3]
[334625488,1723361447145,-184.16133404,0.00020821,3]
[334625489,1723361447155,-500.0,0.00020821,3]
[334625490,1723361447165,-500.0,0.00020821,3]
[334625491,1723361447175,-615.34,0.00020821,3]
[334625492,1723361447186,-610.24,0.00020821,3]
[334625493,1723361447196,-507.91011933,0.00020821,3]
[334625494,1723361447205,-500.0,0.00020821,3]
[334625495,1723361447215,-340.29508575,0.00020821,3]
[334625496,1723361447224,-500.0,0.00020821,3]
[334625497,1723361447234,-480.369157,0.00020821,3]
[334625498,1723361447243,-507.01407153,0.00020821,3]
[334625499,1723361447252,-500.0,0.00020821,3]
[334625500,1723361447262,-500.0,0.00020821,3]
[334625501,1723361447271,-500.0,0.00020821,3]
[334625502,1723361447281,-500.0,0.00020821,3]
[334625503,1723361447290,-500.0,0.00020821,3]
[334625504,1723361447299,-500.0,0.00020821,3]
[334625505,1723361447309,-500.0,0.00020821,3]
[334625506,1723361447319,-500.0,0.00020821,3]
[334625507,1723361447328,-605.4,0.00020821,3]
[334625508,1723361447337,-500.0,0.00020821,3]
[334625509,1723361447347,-500.0,0.00020821,3]
[334625510,1723361447356,-500.0,0.00020821,3]
[334625511,1723361447365,-500.0,0.00020821,3]
[334625512,1723361447374,-283.30390946,0.00020821,3]
[334625513,1723361447384,-500.0,0.00020821,3]
[334625514,1723361447393,-955.71,0.00020821,3]
[334625515,1723361447403,-500.0,0.00020821,3]
[334625516,1723361447413,-645.85087274,0.00020821,3]
[334625517,1723361447422,-275.78751745,0.00020821,3]
[334625518,1723361447431,-500.0,0.00020821,3]
[334625519,1723361447440,-1021.02,0.00020821,3]
[334625520,1723361447449,-640.00895357,0.00020821,3]
[334625521,1723361447459,-1022.92,0.00020821,3]
[334625522,1723361447468,-334.08786,0.00020821,2]
[334625523,1723361447478,-334.08786,0.00020821,2]
[334625524,1723361447487,-334.08786,0.00020821,2]
[334625525,1723361447498,-334.08786,0.00020821,2]
[334625526,1723361447507,-334.08786,0.00020821,2]
[334625527,1723361447517,-500.0,0.00020821,3]
[334625528,1723361447526,-334.08786,0.00020821,2]
[334625529,1723361447536,-500.0,0.00020821,3]
[334625530,1723361447546,-500.0,0.00020821,3]
[334625531,1723361447557,-928.2,0.00020821,3]
[334625532,1723361447567,-500.0,0.00020821,3]
[334625533,1723361447576,-1922.66,0.00020821,3]
[334625534,1723361447585,-514.2943136,0.00020821,3]
[334625535,1723361447595,-516.43,0.00020821,3]
[334625536,1723361447604,-500.0,0.00020821,3]
[334625537,1723361447613,-535.91967811,0.00020821,3]
[334625538,1723361447625,-500.0,0.00020821,3]
[334625539,1723361447636,-500.0,0.00020821,3]
[334625540,1723361447646,-500.0,0.00020821,3]
[334625541,1723361447656,-168.42785613,0.00020821,3]
[334625542,1723361447665,-500.0,0.00020821,3]
[334625543,1723361447676,-157.210082,0.00020821,2]
[334625544,1723361447685,-1210.95,0.00020821,3]
[334625545,1723361447694,-500.0,0.00020821,3]
[334625546,1723361447704,-509.42676098,0.00020821,3]
[334625547,1723361447714,-500.0,0.00020821,3]
[334625548,1723361447725,-504.89497685,0.00020821,3]
[334625549,1723361447735,-500.0,0.00020821,3]
[334625550,1723361447748,-504.67676047,0.00020821,3]
[334625551,1723361447760,-502.00078337,0.00020821,3]
[334625552,1723361447770,-508.39461031,0.00020821,3]
[334625553,1723361447782,-500.0,0.00020821,3]
[334625554,1723361447792,-504.5996778,0.00020821,3]
[334625555,1723361447805,-501.74591873,0.00020821,3]
[334625556,1723361447816,-508.88302386,0.00020821,3]
[334625557,1723361447826,-788.62,0.00020821,3]
[334625558,1723361447836,-531.75765102,0.00020821,3]
[334625559,1723361447846,-500.0,0.00020821,3]
[334625560,1723361447856,-502.62172774,0.00020821,3]
[334625561,1723361447868,-500.0,0.00020821,3]
[334625562,1723361447880,-500.0,0.00020821,3]
[334625563,1723361447891,-500.0,0.00020821,3]
[334625564,1723361447901,-528.2,0.00020821,3]
[334625565,1723361447913,-500.0,0.00020821,3]
[334625566,1723361447924,-500.0,0.00020821,3]
[334625567,1723361447934,-500.0,0.00020821,3]
[334625568,1723361447945,-500.0,0.00020821,3]
[334625569,1723361447955,-500.0,0.00020821,3]
[334625570,1723361447966,-500.0,0.00020821,3]
[334625571,1723361447978,-500.0,0.00020821,3]
[334625572,1723361447991,-580.75292204,0.00020821,3]
[334625573,1723361448002,-952.98,0.00020821,3]
[334625574,1723361448013,-600.01,0.00020821,2]
[334625575,1723361448023,-500.0,0.00020821,3]
[334625576,1723361448032,-500.0,0.00020821,3]
[334625577,1723361448042,-1168.07,0.00020821,3]
[334625578,1723361448051,-1703.39,0.00020821,3]
[334625579,1723361448060,-517.93118177,0.00020821,3]
[334625580,1723361448069,-500.0,0.00020821,3]
[334625581,1723361448079,-500.0,0.00020821,3]
[334625582,1723361448088,-500.0,0.00020821,3]
[334625583,1723361448097,-500.0,0.00020821,3]
[334625584,1723361448106,-151.0,0.00020821,2]
[334625585,1723361448115,-151.0,0.00020821,2]
[334625586,1723361448124,-628.92,0.00020821,3]
[334625587,1723361448134,-151.0,0.00020821,2]
[334625588,1723361448143,-500.0,0.00020821,3]
[334625589,1723361448152,-770.12237,0.00020821,2]
[334625590,1723361448161,-770.12237,0.00020821,2]
[334625591,1723361448170,-770.12237,0.00020821,2]
[334625592,1723361448180,-588.08,0.00020821,3]
[334625593,1723361448189,-500.0,0.00020821,3]
[334625594,1723361448198,-770.12237,0.00020821,2]
[334625595,1723361448208,-770.12237,0.00020821,2]
[334625596,1723361448217,-770.12237,0.00020821,2]
[334625597,1723361448227,-151.0,0.00020821,2]
[334625598,1723361448237,-156.520577,0.00020821,2]
[334625599,1723361448247,-789.55,0.00020821,3]
[334625600,1723361448256,-583.62858373,0.00020821,3]
[334625601,1723361448265,-500.0,0.00020821,3]
[334625602,1723361448275,-618.61,0.00020821,3]
[334625603,1723361448284,-640.19,0.00020821,3]
[334625604,1723361448293,-500.0,0.00020821,3]
[334625605,1723361448303,-691.91,0.00020821,3]
[334625606,1723361448312,-500.0,0.00020821,3]
[334625607,1723361448322,-634.66813032,0.00020821,3]
[334625608,1723361448331,-500.0,0.00020821,3]
[334625609,1723361448340,-205.504568,0.00020821,2]
[334625610,1723361448349,-506.05797487,0.00020821,3]
[334625611,1723361448359,-500.0,0.00020821,3]
[334625612,1723361448368,-215.7663424,0.00020821,3]
[334625613,1723361448377,-521.74586568,0.00020821,3]
[334625614,1723361448386,-151.0,0.00020821,2]
[334625615,1723361448395,-508.69991338,0.00020821,3]
[334625616,1723361448404,-250.00872794,0.00020821,3]
[334625617,1723361448414,-151.0,0.00020821,2]
[334625618,1723361448423,-155.177024,0.00020821,2]
[334625619,1723361448433,-500.0,0.00020821,3]
[334625620,1723361448443,-787.99,0.00020821,3]
[334625621,1723361448452,-743.19,0.00020821,3]
[334625622,1723361448462,-500.0,0.00020821,3]
[334625623,1723361448471,-872.99,0.00020821,3]
[334625624,1723361448481,-1364.63,0.00020821,3]
[334625625,1723361448490,-500.0,0.00020821,3]
[334625626,1723361448501,-1177.54,0.00020821,3]
[334625627,1723361448511,-500.0,0.00020821,3]
[334625628,1723361448521,-1398.52,0.00020821,3]
[334625629,1723361448532,-500.0,0.00020821,3]
[334625630,1723361448541,-638.14,0.00020821,3]
[334625631,1723361448552,-545.08891985,0.00020821,3]
[334625632,1723361448562,-500.0,0.00020821,3]
[334625633,1723361448571,-500.0,0.00020821,3]
[334625634,1723361448582,-500.0,0.00020821,3]
[334625635,1723361448591,-511.30519887,0.00020821,3]
[334625636,1723361448601,-500.0,0.00020821,3]
[334625637,1723361448611,-500.0,0.00020821,3]
[334625638,1723361448621,-672.11,0.00020821,3]
[334625639,1723361448629,-500.0,0.00020821,3]
[334625640,1723361448639,-500.0,0.00020821,3]
[334625641,1723361448775,-500.0,0.00020821,3]
[334625642,1723361448786,-500.0,0.00020821,3]
[334625643,1723361448796,-582.14,0.00020821,3]
[334625644,1723361448809,-500.0,0.00020821,3]
[334625645,1723361448818,-500.0,0.00020821,3]
[334625646,1723361448828,-1336.76,0.00020821,3]
[334625647,1723361448838,-389.9474875,0.00020821,3]
[334625648,1723361448849,-500.0,0.00020821,3]
[334625649,1723361448859,-500.0,0.00020821,3]
[334625650,1723361448869,-527.23,0.00020821,3]
[334625651,1723361448878,-500.0,0.00020821,3]
[334625652,1723361448888,-500.0,0.00020821,3]
[334625653,1723361448899,-500.0,0.00020821,3]
[334625654,1723361448910,-500.0,0.00020821,3]
[334625655,1723361448919,-508.73142886,0.00020821,3]
[334625656,1723361448928,-506.08118856,0.00020821,3]
[334625657,1723361448937,-1469.8,0.00020821,3]
[334625658,1723361448947,-500.0,0.00020821,3]
[334625659,1723361448957,-509.8722924,0.00020821,3]
[334625660,1723361448969,-500.0,0.00020821,3]
[334625661,1723361448979,-500.0,0.00020821,3]
[334625662,1723361448990,-683.88,0.00020821,3]
[334625663,1723361449001,-501.25767554,0.00020821,3]
[334625664,1723361449010,-500.0,0.00020821,3]
[334625665,1723361449019,-523.76010816,0.00020821,3]
[334625666,1723361449029,-1039.95,0.00020821,3]
[334625667,1723361449040,-922.83,0.00020821,3]
[334625668,1723361449051,-500.0,0.00020821,3]
[334625669,1723361449060,-500.0,0.00020821,3]
[334625670,1723361449070,-500.0,0.00020821,3]
[334625671,1723361449080,-500.0,0.00020821,3]
[334625672,1723361449089,-500.0,0.00020821,3]
[334625673,1723361449098,-500.0,0.00020821,3]
[334625674,1723361449108,-500.0,0.00020821,3]
[334625675,1723361449117,-500.0,0.00020821,3]
[334625676,1723361449127,-500.0,0.00020821,3]
[334625677,1723361449136,-500.0,0.00020821,3]
[334625678,1723361449146,-500.0,0.00020821,3]
[334625679,1723361449156,-500.0,0.00020821,3]
[334625680,1723361449167,-1368.57,0.00020821,3]
[334625681,1723361449177,-1187.55,0.00020821,3]
[334625682,1723361449186,-500.0,0.00020821,3]
[334625683,1723361449195,-510.56967766,0.00020821,3]
[334625684,1723361449205,-1421.28,0.00020821,3]
[334625685,1723361449216,-500.0,0.00020821,3]
[334625686,1723361449226,-513.00921081,0.00020821,3]
[334625687,1723361449235,-500.0,0.00020821,3]
[334625688,1723361449245,-503.7474124,0.00020821,3]
[334625689,1723361449255,-500.0,0.00020821,3]
[334625690,1723361449264,-500.0,0.00020821,3]
[334625691,1723361449275,-500.0,0.00020821,3]
[334625692,1723361449284,-500.0,0.00020821,3]
[334625693,1723361449294,-500.0,0.00020821,3]
[334625694,1723361449303,-276.9895369,0.00020821,3]
[334625695,1723361449312,-500.0,0.00020821,3]
[334625696,1723361449322,-500.0,0.00020821,3]
[334625697,1723361449332,-434.84838924,0.00020821,3]
[334625698,1723361449341,-482.76035406,0.00020821,3]
[334625699,1723361449351,-500.0,0.00020821,3]
[334625700,1723361449360,-506.7578891,0.00020821,3]
[334625701,1723361449371,-500.0,0.00020821,3]
[334625702,1723361449380,-500.0,0.00020821,3]
[334625703,1723361449390,-500.0,0.00020821,3]
[334625704,1723361449399,-500.0,0.00020821,3]
[334625705,1723361449409,-500.0,0.00020821,3]
[334625706,1723361449418,-500.0,0.00020821,3]
[334625707,1723361449428,-506.42,0.00020821,3]
[334625708,1723361449438,-500.0,0.00020821,3]
[334625709,1723361449448,-500.0,0.00020821,2]
[334625710,1723361449457,-500.0,0.00020821,3]
[334625711,1723361449467,-500.0,0.00020821,3]
[334625712,1723361449476,-500.0,0.00020821,3]
[334625713,1723361449486,-500.0,0.00020821,3]
[334625714,1723361449497,-500.0,0.00020821,3]
[334625715,1723361449510,-386.865254,0.00020821,2]
[334625716,1723361449522,-386.865254,0.00020821,2]
[334625717,1723361449533,-500.0,0.00020821,3]
[334625718,1723361449542,-500.0,0.00020821,3]
[334625719,1723361449553,-386.865254,0.00020821,2]
[334625720,1723361449564,-386.865254,0.00020821,2]
[334625721,1723361449574,-1261.28,0.00020821,3]
[334625722,1723361449583,-500.0,0.00020821,3]
[334625723,1723361449593,-151.0,0.00020821,2]
[334625724,1723361449603,-1795.97,0.00020821,3]
[334625725,1723361449613,-155.693388,0.00020821,2]
[334625726,1723361449623,-518.4033725,0.00020821,3]
[334625727,1723361449633,-500.0,0.00020821,3]
[334625728,1723361449642,-500.0,0.00020821,3]
[334625729,1723361449651,-500.0,0.00020821,3]
[334625730,1723361449660,-500.0,0.00020821,3]
[334625731,1723361449670,-500.0,0.00020821,3]
[334625732,1723361449680,-728.07,0.00020821,3]
[334625733,1723361449689,-151.0,0.00020821,2]
[334625734,1723361449699,-151.0,0.00020821,2]
[334625735,1723361449708,-500.0,0.00020821,3]
[334625736,1723361449717,-151.0,0.00020821,2]
[334625737,1723361449726,-500.0,0.00020821,3]
[334625738,1723361449736,-151.0,0.00020821,2]
[334625739,1723361449745,-151.0,0.00020821,2]
[334625740,1723361449757,-214.347717,0.00020821,2]
[334625741,1723361449766,-500.0,0.00020821,3]
[334625742,1723361449775,-500.0,0.00020821,3]
[334625743,1723361449784,-506.80937622,0.00020821,3]
[334625744,1723361449794,-500.0,0.00020821,3]
[334625745,1723361449807,-500.0,0.00020821,3]
[334625746,1723361449817,-500.0,0.00020821,3]
[334625747,1723361449827,-1922.81,0.00020821,3]
[334625748,1723361449838,-500.0,0.00020821,3]
[334625749,1723361449847,-151.0,0.00020821,2]
[334625750,1723361449857,-151.0,0.00020821,2]
[334625751,1723361449866,-508.8483183,0.00020821,3]
[334625752,1723361449879,-506.78449327,0.00020821,3]
[334625753,1723361449890,-500.0,0.00020821,3]
[334625754,1723361449901,-1896.87,0.00020821,3]
[334625755,1723361449910,-536.04,0.00020821,3]
[334625756,1723361449923,-623.0,0.00020821,2]
[334625757,1723361449934,-500.0,0.00020821,3]
[334625758,1723361449944,-623.0,0.00020821,2]
[334625759,1723361449953,-623.0,0.00020821,2]
[334625760,1723361449963,-623.0,0.00020821,2]
[334625761,1723361449972,-500.0,0.00020821,3]
[334625762,1723361449981,-198.32995339,0.00020821,3]
[334625763,1723361449991,-500.0,0.00020821,3]
[334625764,1723361450008,-500.0,0.00020821,3]
[334625765,1723361450017,-1875.7,0.00020821,3]
[334625766,1723361450027,-1820.71,0.00020821,3]
[334625767,1723361450036,-507.94492902,0.00020821,3]
[334625768,1723361450045,-500.0,0.00020821,3]
[334625769,1723361450054,-500.0,0.00020821,3]
[334625770,1723361450063,-500.0,0.00020821,3]
[334625771,1723361450072,-3262.69,0.00020821,3]
[334625772,1723361450083,-500.0,0.00020821,3]